[Event "33rd Croatian Junior League 2024"]
[Site "Novalja"]
[Date "2024.04.02"]
[Round "1.1"]
[White "Novosel, Lovro"]
[Black "Denic, Marin"]
[Result "1-0"]
[ECO "E07"]
[WhiteElo "2348"]
[BlackElo "2045"]
[Annotator "RC"]
[PlyCount "73"]
[EventDate "2024.03.28"]
[EventType "team-tourn"]
[EventCountry "CRO"]
[SourceTitle "playchess.com"]
[Source "ChessBase"]
[SourceQuality "1"]
[TimeControl "5400+30"]

1. Nf3 {[%emt 0:00:09]} d5 {[%emt 0:00:12]} 2. c4 {[%emt 0:00:26]} e6 {[%emt 0:00:20]} 3. g3 {[%emt 0:00:40]} Nf6 {[%emt 0:00:14]} 4. Bg2 {[%emt 0:00:14]} Be7 {[%emt 0:00:19]} 5. O-O {[%emt 0:01:31]} O-O {[%emt 0:01:16]} 6. d4 {[%emt 0:00:07]} c6 {[%emt 0:00:19]} 7. Nc3 {[%emt 0:08:42]} Nbd7 {[%emt 0:04:05]} 8. Re1 {[%emt 0:04:21]} b6 {[%emt 0:03:58]} 9. e4 {[%emt 0:03:08]} Nxe4 {[%emt 0:06:05]} 10. Nxe4 {[%emt 0:00:17]} dxe4 {[%emt 0:00:06]} 11. Rxe4 {[%emt 0:00:09]} Bb7 {[%emt 0:08:08]} 12. Re2 {[%emt 0:10:58]} c5 {[%emt 0:15:15]} 13. Rd2 {[%emt 0:05:13]} Qc8 {[%emt 0:06:28]} 14. d5 {[%emt 0:16:00]} exd5 {[%emt 0:03:49]} 15. cxd5 {[%emt 0:00:04]} c4 {[%emt 0:10:08]} 16. Nd4 {[%emt 0:06:08]} Ne5 {[%emt 0:06:02]} 17. Qh5 {[%emt 0:15:17]} Bf6 {[%emt 0:03:24]} 18. Rc2 {[%emt 0:04:26]} Re8 {[%emt 0:15:32]} 19. Bg5 {[%emt 0:01:28]} g6 {[%emt 0:04:28]} 20. Qh4 {[%emt 0:00:13]} Bg7 {[%emt 0:01:17]} 21. Rd1 {[%emt 0:04:00]} Qc5 {[%emt 0:08:28]} 22. Nc6 {[%emt 0:12:29]} b5 {[%emt 0:01:01]} 23. Be3 {[%emt 0:01:39]} Qd6 {[%emt 0:00:13]} 24. Nxa7 {[%emt 0:00:55]} Qd7 {[%emt 0:00:19]} 25. Rcd2 {[%emt 0:00:49]} Nd3 {[%emt 0:00:25]} 26. Nc6 {[%emt 0:02:14]} Rxa2 {[%emt 0:00:27]} 27. b3 {[%emt 0:01:22]} Rxd2 {[%emt 0:00:50]} 28. Rxd2 {[%emt 0:00:05]} Bxc6 {[%emt 0:00:47]} 29. dxc6 {[%emt 0:00:01]} Qe6 {[%emt 0:00:28]} 30. bxc4 {[%emt 0:00:44]} bxc4 {[%emt 0:00:09]} 31. Rc2 {[%emt 0:01:20]} c3 {[%emt 0:00:40]} 32. Bd4 {[%emt 0:00:40]} Qe1+ {[%emt 0:00:41]} 33. Bf1 {[%emt 0:00:01]} Re4 {[%emt 0:00:34]} 34. Qd8+ {[%emt 0:00:27]} Re8 {[%emt 0:00:05]} 35. c7 {[%emt 0:00:11]} Bxd4 {[%emt 0:00:30]} 36. Qxd4 {[%emt 0:00:01]} Ne5 {[%emt 0:00:24]} 37. Rxc3 {[%emt 0:00:10]} 1-0

[Event "33rd Croatian Junior League 2024"]
[Site "Novalja"]
[Date "2024.04.02"]
[Round "1.2"]
[White "Mocic, Ivano"]
[Black "Karlusic, Luka"]
[Result "0-1"]
[ECO "D02"]
[WhiteElo "2011"]
[BlackElo "2232"]
[Annotator "RC"]
[PlyCount "115"]
[EventDate "2024.03.28"]
[EventType "team-tourn"]
[EventCountry "CRO"]
[SourceTitle "playchess.com"]
[Source "ChessBase"]
[SourceQuality "1"]
[TimeControl "5400+30"]

1. d4 {[%emt 0:00:03]} Nf6 {[%emt 0:00:14]} 2. Nf3 {[%emt 0:00:07]} d5 {[%emt 0:00:06]} 3. Bf4 {[%emt 0:00:18]} c5 {[%emt 0:00:31]} 4. e3 {[%emt 0:00:16]} g6 {[%emt 0:00:24]} 5. Nbd2 {[%emt 0:03:03]} Bg7 {[%emt 0:03:35]} 6. h3 {[%emt 0:05:18]} O-O {[%emt 0:03:11]} 7. Be2 {[%emt 0:02:39]} Nc6 {[%emt 0:02:24]} 8. Ne5 {[%emt 0:04:59]} cxd4 {[%emt 0:08:00]} 9. Nxc6 {[%emt 0:00:14]} bxc6 {[%emt 0:00:04]} 10. exd4 {[%emt 0:00:40]} Nd7 {[%emt 0:06:31]} 11. c3 {[%emt 0:01:11]} c5 {[%emt 0:05:03]} 12. Bf3 {[%emt 0:11:51]} Bb7 {[%emt 0:04:56]} 13. Qb3 {[%emt 0:06:13]} Qb6 {[%emt 0:06:05]} 14. Qxb6 {[%emt 0:12:57]} axb6 {[%emt 0:01:17]} 15. Be3 {[%emt 0:07:58]} e5 {[%emt 0:09:21]} 16. dxe5 {[%emt 0:02:39]} Nxe5 {[%emt 0:01:12]} 17. O-O {[%emt 0:04:54]} Nxf3+ {[%emt 0:02:26]} 18. Nxf3 {[%emt 0:01:33]} d4 {[%emt 0:01:50]} 19. cxd4 {[%emt 0:00:26]} Bxf3 {[%emt 0:00:07]} 20. gxf3 {[%emt 0:00:05]} cxd4 {[%emt 0:00:16]} 21. Bf4 {[%emt 0:02:11]} Rfc8 {[%emt 0:02:57]} 22. Rfc1 {[%emt 0:06:16]} Kf8 {[%emt 0:05:07]} 23. Bc7 {[%emt 0:05:44]} Ke8 {[%emt 0:04:49]} 24. Bxb6 {[%emt 0:04:13]} Rxc1+ {[%emt 0:03:36]} 25. Rxc1 {[%emt 0:00:13]} Rxa2 {[%emt 0:00:21]} 26. Rd1 {[%emt 0:00:39]} Ra4 {[%emt 0:02:37]} 27. Kg2 {[%emt 0:07:04]} Rb4 {[%emt 0:05:14]} 28. Bc5 {[%emt 0:02:10]} Rc4 {[%emt 0:00:50]} 29. Bb6 {[%emt 0:02:47]} Kd7 {[%emt 0:01:38]} 30. b3 {[%emt 0:03:39]} Rc6 {[%emt 0:00:32]} 31. Ba5 {[%emt 0:02:12]} Kd6 {[%emt 0:03:23]} 32. Rd3 {[%emt 0:01:02]} Kd5 {[%emt 0:00:59]} 33. Bd2 {[%emt 0:00:46]} Ra6 {[%emt 0:03:45]} 34. Bb4 {[%emt 0:00:22]} Ra2 {[%emt 0:01:41]} 35. Bd2 {[%emt 0:00:41]} Ra1 {[%emt 0:01:23]} 36. Bb4 {[%emt 0:00:22]} h5 {[%emt 0:01:00]} 37. Rd2 {[%emt 0:00:28]} Rb1 {[%emt 0:01:20]} 38. Rd3 {[%emt 0:00:07]} Be5 {[%emt 0:00:38]} 39. Ba3 {[%emt 0:00:56]} Bc7 {[%emt 0:01:11]} 40. Bb4 {[%emt 0:00:14]} Bb6 {[%emt 0:01:06]} 41. Kh2 {[%emt 0:00:17]} Rc1 {[%emt 0:02:56]} 42. Kg2 {[%emt 0:00:34]} Bc5 {[%emt 0:00:32]} 43. Ba5 {[%emt 0:00:46]} Rb1 {[%emt 0:00:54]} 44. Kh2 {[%emt 0:00:21]} Ba3 {[%emt 0:00:37]} 45. Bc3 {[%emt 0:00:40]} Bc5 {[%emt 0:00:15]} 46. Ba5 {[%emt 0:00:19]} Ra1 {[%emt 0:01:07]} 47. Bc3 {[%emt 0:00:26]} Ra3 {[%emt 0:00:35]} 48. Bd2 {[%emt 0:00:27]} Ke5 {[%emt 0:00:49]} 49. Kg3 {[%emt 0:00:36]} Ra2 {[%emt 0:01:00]} 50. Bf4+ {[%emt 0:00:35]} Kd5 {[%emt 0:00:04]} 51. Bd2 {[%emt 0:00:17]} f6 {[%emt 0:01:25]} 52. Kg2 {[%emt 0:00:41]} Rc2 {[%emt 0:00:31]} 53. Kh2 {[%emt 0:00:41]} Ba3 {[%emt 0:00:34]} 54. Be3 {[%emt 0:00:41]} Bb2 {[%emt 0:00:08]} 55. Kg2 {[%emt 0:00:37]} Ke5 {[%emt 0:01:30]} 56. Bh6 {[%emt 0:00:27]} Bc1 {[%emt 0:01:17]} 57. Bf8 {[%emt 0:00:31]} Be3 {[%emt 0:00:23]} 58. f4+ {[%emt 0:00:30]} 0-1

[Event "33rd Croatian Junior League 2024"]
[Site "Novalja"]
[Date "2024.04.02"]
[Round "1.3"]
[White "Mazuran, Gabrijel"]
[Black "Petricevic, Mateo"]
[Result "1/2-1/2"]
[ECO "E06"]
[WhiteElo "2054"]
[BlackElo "2036"]
[Annotator "RC"]
[PlyCount "149"]
[EventDate "2024.03.28"]
[EventType "team-tourn"]
[EventCountry "CRO"]
[SourceTitle "playchess.com"]
[Source "ChessBase"]
[SourceQuality "1"]
[TimeControl "5400+30"]

1. d4 {[%emt 0:00:05]} d5 {[%emt 0:00:30]} 2. c4 {[%emt 0:00:07]} e6 {[%emt 0:00:51]} 3. Nf3 {[%emt 0:00:14]} Nf6 {[%emt 0:00:55]} 4. g3 {[%emt 0:00:10]} Be7 {[%emt 0:02:31]} 5. Bg2 {[%emt 0:00:13]} O-O {[%emt 0:01:22]} 6. O-O {[%emt 0:00:07]} c6 {[%emt 0:09:54]} 7. Qc2 {[%emt 0:00:16]} b6 {[%emt 0:15:32]} 8. Nbd2 {[%emt 0:02:22]} Bb7 {[%emt 0:08:19]} 9. e4 {[%emt 0:04:11]} dxc4 {[%emt 0:15:11]} 10. Nxc4 {[%emt 0:01:17]} c5 {[%emt 0:09:27]} 11. e5 {[%emt 0:27:32]} Nd5 {[%emt 0:00:40]} 12. dxc5 {[%emt 0:02:34]} bxc5 {[%emt 0:04:43]} 13. a3 {[%emt 0:21:00]} Nd7 {[%emt 0:04:57]} 14. b3 {[%emt 0:10:59]} N7b6 {[%emt 0:01:56]} 15. Na5 {[%emt 0:02:48]} Ba6 {[%emt 0:01:25]} 16. Nc6 {[%emt 0:00:06]} Qc7 {[%emt 0:01:37]} 17. Nxe7+ {[%emt 0:00:06]} Qxe7 {[%emt 0:06:43]} 18. Re1 {[%emt 0:03:48]} h6 {[%emt 0:00:13]} 19. Nd2 {[%emt 0:00:31]} Rac8 {[%emt 0:01:21]} 20. Nc4 {[%emt 0:01:54]} Nxc4 {[%emt 0:00:09]} 21. bxc4 {[%emt 0:00:02]} Nb6 {[%emt 0:00:15]} 22. a4 {[%emt 0:09:50]} Rfd8 {[%emt 0:05:24]} 23. Bf1 {[%emt 0:02:24]} Bb7 {[%emt 0:02:40]} 24. a5 {[%emt 0:00:24]} Nd7 {[%emt 0:00:14]} 25. Rb1 {[%emt 0:03:52]} Ba8 {[%emt 0:00:25]} 26. Bd3 {[%emt 0:01:18]} Nb8 {[%emt 0:00:22]} 27. Bb2 {[%emt 0:04:41]} Nc6 {[%emt 0:00:47]} 28. Be4 {[%emt 0:00:59]} Qc7 {[%emt 0:01:32]} 29. Bc3 {[%emt 0:00:38]} Nd4 {[%emt 0:02:26]} 30. Bxd4 {[%emt 0:00:15]} cxd4 {[%emt 0:00:09]} 31. Bxa8 {[%emt 0:00:07]} Rxa8 {[%emt 0:00:01]} 32. a6 {[%emt 0:01:06]} Qc6 {[%emt 0:00:23]} 33. Qa2 {[%emt 0:00:31]} d3 {[%emt 0:01:48]} 34. Rb7 {[%emt 0:00:30]} Qc5 {[%emt 0:00:28]} 35. Qd2 {[%emt 0:00:29]} Qxc4 {[%emt 0:00:24]} 36. Qf4 {[%emt 0:00:31]} Qxf4 {[%emt 0:00:21]} 37. gxf4 {[%emt 0:00:00]} Rac8 {[%emt 0:00:40]} 38. Rd1 {[%emt 0:00:44]} Rc6 {[%emt 0:01:17]} 39. Rxa7 {[%emt 0:00:11]} d2 {[%emt 0:00:06]} 40. Kf1 {[%emt 0:00:25]} g6 {[%emt 0:01:41]} 41. Ke2 {[%emt 0:00:15]} Rc2 {[%emt 0:00:22]} 42. Rb7 {[%emt 0:00:19]} Ra8 {[%emt 0:00:19]} 43. a7 {[%emt 0:00:27]} Kg7 {[%emt 0:00:04]} 44. Rxd2 {[%emt 0:00:11]} Rcc8 {[%emt 0:00:58]} 45. Rdb2 {[%emt 0:00:46]} Rc4 {[%emt 0:00:21]} 46. Ra2 {[%emt 0:00:34]} Rcc8 {[%emt 0:00:02]} 47. Kd3 {[%emt 0:01:18]} g5 {[%emt 0:00:12]} 48. fxg5 {[%emt 0:00:47]} hxg5 {[%emt 0:00:01]} 49. Ra6 {[%emt 0:00:33]} Kg6 {[%emt 0:00:05]} 50. Kd4 {[%emt 0:00:30]} g4 {[%emt 0:00:41]} 51. Ra1 {[%emt 0:00:29]} f5 {[%emt 0:00:44]} 52. exf6 {[%emt 0:00:30]} Kxf6 {[%emt 0:00:01]} 53. Ra6 {[%emt 0:00:30]} Rh8 {[%emt 0:01:26]} 54. Ke4 {[%emt 0:00:31]} Rhc8 {[%emt 0:00:30]} 55. Rbb6 {[%emt 0:00:29]} Rc4+ {[%emt 0:00:32]} 56. Kd3 {[%emt 0:00:13]} Rc7 {[%emt 0:00:01]} 57. Rxe6+ {[%emt 0:00:09]} Kf5 {[%emt 0:00:13]} 58. Rh6 {[%emt 0:01:10]} Rd7+ {[%emt 0:00:39]} 59. Ke3 {[%emt 0:00:29]} Re7+ {[%emt 0:00:03]} 60. Kd4 {[%emt 0:00:23]} Rd7+ {[%emt 0:00:03]} 61. Ke3 {[%emt 0:00:38]} Re7+ {[%emt 0:00:04]} 62. Kd3 {[%emt 0:00:25]} Rd7+ {[%emt 0:00:08]} 63. Ke2 {[%emt 0:00:25]} Raxa7 {[%emt 0:01:11]} 64. Rh5+ {[%emt 0:00:38]} Kf4 {[%emt 0:00:10]} 65. Rf6+ {[%emt 0:00:13]} Ke4 {[%emt 0:00:02]} 66. Kf1 {[%emt 0:00:46]} Rf7 {[%emt 0:02:26]} 67. Re6+ {[%emt 0:00:21]} Kf3 {[%emt 0:01:03]} 68. Re3+ {[%emt 0:00:32]} Kf4 {[%emt 0:00:01]} 69. Rb3 {[%emt 0:00:38]} Ra2 {[%emt 0:01:15]} 70. Rb4+ {[%emt 0:00:27]} Kf3 {[%emt 0:00:04]} 71. Rb3+ {[%emt 0:00:08]} Kf4 {[%emt 0:00:01]} 72. Kg2 {[%emt 0:00:13]} Ke4 {[%emt 0:00:34]} 73. Rb4+ {[%emt 0:00:47]} Kd3 {[%emt 0:00:10]} 74. Rd5+ {[%emt 0:00:49]} Kc3 {[%emt 0:00:05]} 75. Rxg4 {[%emt 0:00:31]} 1/2-1/2

[Event "33rd Croatian Junior League 2024"]
[Site "Novalja"]
[Date "2024.04.02"]
[Round "1.4"]
[White "Kurtovic, Darko"]
[Black "Simunkovic, Bartol"]
[Result "0-1"]
[ECO "B98"]
[WhiteElo "1969"]
[BlackElo "1885"]
[Annotator "RC"]
[PlyCount "80"]
[EventDate "2024.03.28"]
[EventType "team-tourn"]
[EventCountry "CRO"]
[SourceTitle "playchess.com"]
[Source "ChessBase"]
[SourceQuality "1"]
[TimeControl "5400+30"]

1. e4 {[%emt 0:00:03]} c5 {[%emt 0:00:07]} 2. Nf3 {[%emt 0:00:04]} d6 {[%emt 0:00:20]} 3. d4 {[%emt 0:00:08]} cxd4 {[%emt 0:00:06]} 4. Nxd4 {[%emt 0:00:08]} Nf6 {[%emt 0:00:05]} 5. Nc3 {[%emt 0:00:15]} a6 {[%emt 0:00:05]} 6. Bg5 {[%emt 0:00:04]} e6 {[%emt 0:01:56]} 7. f4 {[%emt 0:00:17]} Be7 {[%emt 0:03:09]} 8. Qf3 {[%emt 0:01:20]} Nbd7 {[%emt 0:02:06]} 9. Bc4 {[%emt 0:00:53]} Nb6 {[%emt 0:06:14]} 10. Bb3 {[%emt 0:00:35]} Qc7 {[%emt 0:00:33]} 11. O-O-O {[%emt 0:00:42]} Nc4 {[%emt 0:04:19]} 12. g4 {[%emt 0:11:32]} b5 {[%emt 0:10:10]} 13. Bxf6 {[%emt 0:10:47]} gxf6 {[%emt 0:01:58]} 14. f5 {[%emt 0:03:02]} b4 {[%emt 0:25:00]} 15. Ba4+ {[%emt 0:00:51]} Kf8 {[%emt 0:00:25]} 16. Nce2 {[%emt 0:02:18]} e5 {[%emt 0:01:14]} 17. Nc6 {[%emt 0:01:15]} Nb6 {[%emt 0:03:19]} 18. Nxe7 {[%emt 0:00:21]} Kxe7 {[%emt 0:01:57]} 19. Bb3 {[%emt 0:01:02]} Bb7 {[%emt 0:04:34]} 20. g5 {[%emt 0:02:30]} Nd7 {[%emt 0:06:37]} 21. Qh5 {[%emt 0:00:55]} Rhf8 {[%emt 0:05:33]} 22. Ng3 {[%emt 0:02:55]} a5 {[%emt 0:04:38]} 23. Ba4 {[%emt 0:03:56]} Rg8 {[%emt 0:04:50]} 24. gxf6+ {[%emt 0:00:29]} Nxf6 {[%emt 0:00:02]} 25. Qh4 {[%emt 0:00:21]} Rg4 {[%emt 0:00:34]} 26. Qh6 {[%emt 0:01:55]} Bxe4 {[%emt 0:06:33]} 27. Nh5 {[%emt 0:00:17]} Nxh5 {[%emt 0:00:02]} 28. Qxh5 {[%emt 0:00:15]} Rag8 {[%emt 0:01:10]} 29. f6+ {[%emt 0:02:03]} Kxf6 {[%emt 0:03:13]} 30. Rhf1+ {[%emt 0:00:49]} Ke6 {[%emt 0:03:06]} 31. Bb3+ {[%emt 0:01:44]} d5 {[%emt 0:00:13]} 32. Qh6+ {[%emt 0:09:39]} R8g6 {[%emt 0:01:22]} 33. Qf8 {[%emt 0:00:14]} Rg8 {[%emt 0:00:40]} 34. Qh6+ {[%emt 0:00:23]} R8g6 {[%emt 0:00:01]} 35. Qf8 {[%emt 0:02:18]} f5 {[%emt 0:00:55]} 36. Rxf5 {[%emt 0:02:31]} Rg2 {[%emt 0:00:35]} 37. Rf2 {[%emt 0:03:06]} Rxf2 {[%emt 0:00:10]} 38. Qxf2 {[%emt 0:00:06]} Rg2 {[%emt 0:00:31]} 39. Rxd5 {[%emt 0:08:59]} Rxf2 {[%emt 0:00:30]} 40. Rc5+ {[%emt 0:00:05]} Kd6 {[%emt 0:00:08]} 0-1

[Event "33rd Croatian Junior League 2024"]
[Site "Novalja"]
[Date "2024.04.02"]
[Round "1.5"]
[White "Troselj, Ivan"]
[Black "Kovac, Petar"]
[Result "0-1"]
[ECO "B22"]
[WhiteElo "2072"]
[BlackElo "2173"]
[Annotator "RC"]
[PlyCount "52"]
[EventDate "2024.03.28"]
[EventType "team-tourn"]
[EventCountry "CRO"]
[SourceTitle "playchess.com"]
[Source "ChessBase"]
[SourceQuality "1"]
[TimeControl "5400+30"]

1. e4 {[%emt 0:00:03]} c5 {[%emt 0:00:05]} 2. Nf3 {[%emt 0:00:05]} Nc6 {[%emt 0:00:14]} 3. c3 {[%emt 0:00:06]} e5 {[%emt 0:00:22]} 4. Bd3 {[%emt 0:00:49]} Nf6 {[%emt 0:00:37]} 5. O-O {[%emt 0:00:16]} d5 {[%emt 0:01:04]} 6. exd5 {[%emt 0:08:58]} Qxd5 {[%emt 0:00:11]} 7. Qe2 {[%emt 0:00:39]} Bg4 {[%emt 0:12:08]} 8. Re1 {[%emt 0:02:43]} Bxf3 {[%emt 0:22:54]} 9. Qxf3 {[%emt 0:00:39]} Qxf3 {[%emt 0:00:34]} 10. gxf3 {[%emt 0:00:02]} Bd6 {[%emt 0:02:09]} 11. Na3 {[%emt 0:01:54]} O-O {[%emt 0:12:03]} 12. Nc4 {[%emt 0:01:15]} Bc7 {[%emt 0:01:46]} 13. a4 {[%emt 0:00:07]} Nd5 {[%emt 0:02:38]} 14. Be4 {[%emt 0:05:47]} Rad8 {[%emt 0:00:51]} 15. b3 {[%emt 0:00:42]} f5 {[%emt 0:03:22]} 16. Bxd5+ {[%emt 0:00:11]} Rxd5 {[%emt 0:00:05]} 17. Ba3 {[%emt 0:02:05]} b6 {[%emt 0:03:41]} 18. b4 {[%emt 0:04:43]} cxb4 {[%emt 0:01:31]} 19. cxb4 {[%emt 0:00:07]} Nd4 {[%emt 0:01:52]} 20. Kh1 {[%emt 0:01:03]} Nxf3 {[%emt 0:02:49]} 21. Red1 {[%emt 0:01:44]} e4 {[%emt 0:03:38]} 22. Rac1 {[%emt 0:03:29]} f4 {[%emt 0:06:36]} 23. b5 {[%emt 0:02:31]} Rh5 {[%emt 0:01:27]} 24. Kg2 {[%emt 0:00:36]} Rf6 {[%emt 0:02:37]} 25. Rh1 {[%emt 0:00:46]} Rg6+ {[%emt 0:00:47]} 26. Kf1 {[%emt 0:00:07]} Rxh2 {[%emt 0:00:22]} 0-1

[Event "33rd Croatian Junior League 2024"]
[Site "Novalja"]
[Date "2024.04.02"]
[Round "1.6"]
[White "Konjevic, Nikola"]
[Black "Damjanovic, Stjepan"]
[Result "1-0"]
[ECO "B01"]
[WhiteElo "2056"]
[BlackElo "2150"]
[Annotator "RC"]
[PlyCount "69"]
[EventDate "2024.03.28"]
[EventType "team-tourn"]
[EventCountry "CRO"]
[SourceTitle "playchess.com"]
[Source "ChessBase"]
[SourceQuality "1"]
[TimeControl "5400+30"]

1. e4 {[%emt 0:00:04]} d5 {[%emt 0:00:16]} 2. exd5 {[%emt 0:00:11]} Qxd5 {[%emt 0:00:05]} 3. Nc3 {[%emt 0:00:06]} Qa5 {[%emt 0:00:02]} 4. d4 {[%emt 0:00:09]} Nf6 {[%emt 0:00:13]} 5. Nf3 {[%emt 0:00:24]} Bf5 {[%emt 0:00:25]} 6. Ne5 {[%emt 0:05:07]} Nbd7 {[%emt 0:04:27]} 7. Nc4 {[%emt 0:00:14]} Qa6 {[%emt 0:00:24]} 8. Bf4 {[%emt 0:05:44]} Qe6+ {[%emt 0:02:23]} 9. Be2 {[%emt 0:03:12]} c6 {[%emt 0:03:58]} 10. O-O {[%emt 0:04:15]} Nb6 {[%emt 0:50:33]} 11. Nxb6 {[%emt 0:06:48]} axb6 {[%emt 0:00:14]} 12. Bf3 {[%emt 0:00:51]} Qc4 {[%emt 0:06:41]} 13. a3 {[%emt 0:30:34]} Rd8 {[%emt 0:04:53]} 14. Be5 {[%emt 0:00:23]} Nd5 {[%emt 0:04:15]} 15. Nxd5 {[%emt 0:02:47]} cxd5 {[%emt 0:00:04]} 16. Be2 {[%emt 0:03:44]} Qa4 {[%emt 0:02:39]} 17. b3 {[%emt 0:00:24]} Qc6 {[%emt 0:00:03]} 18. a4 {[%emt 0:00:36]} Qg6 {[%emt 0:00:06]} 19. Rc1 {[%emt 0:02:48]} h5 {[%emt 0:06:47]} 20. c4 {[%emt 0:05:35]} dxc4 {[%emt 0:06:31]} 21. Bxc4 {[%emt 0:00:43]} Be4 {[%emt 0:01:09]} 22. Bb5+ {[%emt 0:00:22]} Bc6 {[%emt 0:00:03]} 23. Bxc6+ {[%emt 0:00:37]} bxc6 {[%emt 0:00:02]} 24. Qf3 {[%emt 0:00:46]} Rd5 {[%emt 0:02:07]} 25. Rc3 {[%emt 0:02:03]} Rh6 {[%emt 0:02:59]} 26. Bf4 {[%emt 0:02:55]} Rh7 {[%emt 0:00:07]} 27. Rfc1 {[%emt 0:00:33]} Qg4 {[%emt 0:00:29]} 28. Qxg4 {[%emt 0:07:05]} hxg4 {[%emt 0:00:03]} 29. Rxc6 {[%emt 0:00:13]} Rxd4 {[%emt 0:00:33]} 30. Be3 {[%emt 0:00:54]} Rd5 {[%emt 0:01:18]} 31. Rc8+ {[%emt 0:00:30]} Kd7 {[%emt 0:00:30]} 32. Rxf8 {[%emt 0:01:30]} Rdh5 {[%emt 0:00:02]} 33. Rxf7 {[%emt 0:01:02]} Rxh2 {[%emt 0:00:05]} 34. Kf1 {[%emt 0:00:06]} Rh8 {[%emt 0:00:40]} 35. Rxg7 {[%emt 0:00:48]} 1-0

[Event "33rd Croatian Junior League 2024"]
[Site "Novalja"]
[Date "2024.04.02"]
[Round "1.7"]
[White "Matosin, Jurica"]
[Black "Car, Filip"]
[Result "0-1"]
[ECO "B51"]
[WhiteElo "1928"]
[BlackElo "2106"]
[Annotator "RC"]
[PlyCount "52"]
[EventDate "2024.03.28"]
[EventType "team-tourn"]
[EventCountry "CRO"]
[SourceTitle "playchess.com"]
[Source "ChessBase"]
[SourceQuality "1"]
[TimeControl "5400+30"]

1. e4 {[%emt 0:00:02]} c5 {[%emt 0:00:12]} 2. Nf3 {[%emt 0:00:08]} d6 {[%emt 0:01:09]} 3. Bb5+ {[%emt 0:00:07]} Nc6 {[%emt 0:01:16]} 4. O-O {[%emt 0:05:03]} Bd7 {[%emt 0:00:04]} 5. Re1 {[%emt 0:00:37]} Nf6 {[%emt 0:00:11]} 6. c3 {[%emt 0:00:55]} a6 {[%emt 0:00:08]} 7. Bf1 {[%emt 0:00:09]} Bg4 {[%emt 0:00:08]} 8. h3 {[%emt 0:04:55]} Bxf3 {[%emt 0:00:23]} 9. Qxf3 {[%emt 0:00:15]} e6 {[%emt 0:00:16]} 10. d3 {[%emt 0:01:13]} Be7 {[%emt 0:01:49]} 11. Qd1 {[%emt 0:02:42]} d5 {[%emt 0:18:15]} 12. e5 {[%emt 0:01:26]} Nd7 {[%emt 0:00:09]} 13. f4 {[%emt 0:01:10]} Bh4 {[%emt 0:02:40]} 14. Re2 {[%emt 0:04:01]} Bg3 {[%emt 0:02:04]} 15. Rc2 {[%emt 0:11:14]} Qh4 {[%emt 0:04:22]} 16. Qf3 {[%emt 0:06:45]} g5 {[%emt 0:08:43]} 17. fxg5 {[%emt 0:02:14]} Ncxe5 {[%emt 0:02:19]} 18. Qe2 {[%emt 0:01:38]} Rg8 {[%emt 0:03:10]} 19. d4 {[%emt 0:12:20]} cxd4 {[%emt 0:02:14]} 20. cxd4 {[%emt 0:03:24]} Nc6 {[%emt 0:01:31]} 21. Rc3 {[%emt 0:03:31]} Nxd4 {[%emt 0:02:57]} 22. Qd3 {[%emt 0:03:18]} Bf2+ {[%emt 0:02:56]} 23. Kh1 {[%emt 0:00:52]} Ne5 {[%emt 0:02:37]} 24. Qd1 {[%emt 0:02:11]} Nf5 {[%emt 0:05:41]} 25. Rc7 {[%emt 0:05:02]} Ng3+ {[%emt 0:01:47]} 26. Kh2 {[%emt 0:00:08]} Nxf1+ {[%emt 0:01:07]} 0-1

[Event "33rd Croatian Junior League 2024"]
[Site "Novalja"]
[Date "2024.04.02"]
[Round "1.8"]
[White "Mandaric, Fran"]
[Black "Bozic, Niko"]
[Result "1-0"]
[ECO "B15"]
[WhiteElo "1933"]
[BlackElo "1832"]
[Annotator "RC"]
[PlyCount "85"]
[EventDate "2024.03.28"]
[EventType "team-tourn"]
[EventCountry "CRO"]
[SourceTitle "playchess.com"]
[Source "ChessBase"]
[SourceQuality "1"]
[TimeControl "5400+30"]

1. e4 {[%emt 0:00:03]} c6 {[%emt 0:00:07]} 2. d4 {[%emt 0:00:05]} g6 {[%emt 0:00:08]} 3. Nf3 {[%emt 0:01:46]} d5 {[%emt 0:00:47]} 4. Nc3 {[%emt 0:07:08]} Bg7 {[%emt 0:01:17]} 5. Be2 {[%emt 0:06:36]} Bg4 {[%emt 0:00:58]} 6. Be3 {[%emt 0:07:00]} e6 {[%emt 0:01:42]} 7. Ng1 {[%emt 0:09:13]} Bxe2 {[%emt 0:00:39]} 8. Ngxe2 {[%emt 0:00:10]} Nd7 {[%emt 0:05:30]} 9. Qd2 {[%emt 0:13:45]} dxe4 {[%emt 0:03:32]} 10. Nxe4 {[%emt 0:00:55]} Ndf6 {[%emt 0:00:28]} 11. Nxf6+ {[%emt 0:17:56]} Nxf6 {[%emt 0:00:19]} 12. c4 {[%emt 0:01:00]} O-O {[%emt 0:06:14]} 13. O-O {[%emt 0:00:53]} Ng4 {[%emt 0:01:50]} 14. Rad1 {[%emt 0:09:11]} Nxe3 {[%emt 0:02:16]} 15. Qxe3 {[%emt 0:02:56]} Qc7 {[%emt 0:03:32]} 16. f4 {[%emt 0:03:06]} Rad8 {[%emt 0:01:44]} 17. Rd3 {[%emt 0:01:33]} Rd7 {[%emt 0:00:31]} 18. Rfd1 {[%emt 0:02:22]} Rfd8 {[%emt 0:00:13]} 19. b3 {[%emt 0:04:06]} Qa5 {[%emt 0:01:40]} 20. Qd2 {[%emt 0:06:37]} Qf5 {[%emt 0:04:03]} 21. Qe3 {[%emt 0:03:45]} c5 {[%emt 0:03:55]} 22. d5 {[%emt 0:00:34]} b6 {[%emt 0:01:26]} 23. Ng3 {[%emt 0:00:44]} Qg4 {[%emt 0:02:38]} 24. Ne2 {[%emt 0:00:33]} exd5 {[%emt 0:03:14]} 25. cxd5 {[%emt 0:00:25]} Rd6 {[%emt 0:05:35]} 26. Qe4 {[%emt 0:00:36]} Qd7 {[%emt 0:00:43]} 27. Kf1 {[%emt 0:00:27]} f5 {[%emt 0:01:23]} 28. Qf3 {[%emt 0:00:31]} Re8 {[%emt 0:00:13]} 29. h3 {[%emt 0:00:29]} Re4 {[%emt 0:00:18]} 30. Ng3 {[%emt 0:00:30]} c4 {[%emt 0:00:56]} 31. bxc4 {[%emt 0:00:30]} Rxc4 {[%emt 0:00:01]} 32. Ne2 {[%emt 0:00:30]} Qa4 {[%emt 0:00:40]} 33. a3 {[%emt 0:00:28]} Re4 {[%emt 0:00:32]} 34. g3 {[%emt 0:00:28]} h5 {[%emt 0:00:43]} 35. Nc3 {[%emt 0:00:31]} Bxc3 {[%emt 0:00:03]} 36. Rxc3 {[%emt 0:00:05]} Qb5+ {[%emt 0:00:26]} 37. Qd3 {[%emt 0:00:29]} Qd7 {[%emt 0:01:38]} 38. Rc6 {[%emt 0:00:59]} h4 {[%emt 0:00:15]} 39. Rdc1 {[%emt 0:00:30]} Rxc6 {[%emt 0:07:44]} 40. Rxc6 {[%emt 0:00:10]} Kh7 {[%emt 0:00:08]} 41. Qc3 {[%emt 0:00:25]} Re7 {[%emt 0:00:52]} 42. d6 {[%emt 0:00:36]} Rg7 {[%emt 0:01:10]} 43. Qxg7+ {[%emt 0:00:04]} 1-0